fUST/lending_fUST_20240621
["ID","MTS","AMOUNT","RATE_DAILY","PERIOD"]
[330044569,1718964546600,-420.0,0.00028839,2]
[330044570,1718964547133,-300.75155542,0.00029333,5]
[330044571,1718964547152,-161.841746,0.00029374,2]
[330044572,1718964547172,-2043.52164349,0.00030268,2]
[330044573,1718964568100,522.32569064,0.00028756,2]
[330044574,1718964568126,1570.5772427,0.00028756,2]
[330044575,1718964568153,1869.4733973,0.00028756,2]
[330044576,1718964569138,-20937.62366936,0.00028756,2]
[330044577,1718964569160,-153.60705367,0.000309,2]
[330044578,1718964569187,-1696.64119399,0.00031009,4]
[330044579,1718964614106,622.23449439,0.00026739,2]
[330044598,1718964632751,-262.5536094,0.00029121,2]
[330044599,1718964632761,-1005.343901,0.000307,6]
[330044600,1718964632770,-1282.15444504,0.00031,2]
[330044601,1718964632779,-175.01217513,0.00031001,4]
[330044602,1718964632790,-3992.37178314,0.00031001,4]
[330044609,1718964638308,1247.23890291,0.000225,30]
[330044610,1718964638330,1894.74507821,0.000225,30]
[330044611,1718964638377,6858.01601888,0.000225,30]
[330044615,1718964638984,-271.06252242,0.00031,2]
[330044616,1718964638994,-500.0,0.00031,2]
[330044618,1718964639003,-500.0,0.00031,2]
[330044620,1718964639013,-500.0,0.00031,2]
[330044622,1718964639024,-426.1761817,0.00031,2]
[330044624,1718964639033,-2809.10450191,0.00031001,4]
[330044637,1718964639322,-8431.8982098,0.00031001,4]
[330044638,1718964639335,-4547.13080584,0.00031001,4]
[330044639,1718964639346,-27752.21533899,0.00031001,4]
[330044640,1718964639356,-1000.0,0.000312,6]
[330044641,1718964639365,-190.50091096,0.00031254,2]
[330044642,1718964639374,-150.0,0.00031449,30]
[330044643,1718964639384,-150.0,0.00031449,30]
[330044644,1718964639393,-192.5,0.00031449,30]
[330044645,1718964639403,-622.23449439,0.00031739,2]
[330044646,1718964639412,-153.60705365,0.0003185,2]
[330044647,1718964639423,-3793.688115,0.00032099,120]
[330044648,1718964639432,-435.0,0.00032761,2]
[330044649,1718964639441,-153.60705365,0.000328,2]
[330044650,1718964639454,-153.60705365,0.0003375,2]
[330044651,1718964639463,-211.84898192,0.00034699,4]
[330044652,1718964639474,-153.60705365,0.000347,2]
[330044653,1718964639485,-1786.65397292,0.00034767,2]
[330044654,1718964639495,-3457.07,0.0003479,3]
[330044655,1718964639504,-3572.31,0.0003479,3]
[330044656,1718964639513,-500.0,0.00034798,7]
[330044657,1718964639523,-220.53380272,0.00034798,7]
[330044658,1718964639533,-500.0,0.00034798,7]
[330044659,1718964639544,-232.01086845,0.00034798,7]
[330044661,1718964639555,-500.0,0.00034798,7]
[330044663,1718964639567,-380.61710589,0.00034798,7]
[330044665,1718964639580,-528.08906635,0.00034798,7]
[330044666,1718964639590,-500.0,0.00034798,7]
[330044667,1718964639600,-500.0,0.00034798,7]
[330044668,1718964639609,-500.0,0.00034798,7]
[330044669,1718964639622,-298.96070192,0.00034798,7]
[330044670,1718964639632,-500.0,0.00034798,7]
[330044671,1718964639642,-500.0,0.00034798,7]
[330044672,1718964639653,-500.0,0.00034798,7]
[330044673,1718964639752,-500.0,0.00034798,7]
[330044674,1718964639762,-500.0,0.00034798,7]
[330044675,1718964639772,-500.0,0.00034798,7]
[330044676,1718964639782,-500.0,0.00034798,7]
[330044677,1718964639792,-500.0,0.00034798,7]
[330044678,1718964639801,-500.0,0.00034798,7]
[330044679,1718964639811,-487.12043021,0.00034798,7]
[330044680,1718964639820,-500.0,0.00034798,7]
[330044681,1718964639830,-500.0,0.00034798,7]
[330044682,1718964639839,-500.0,0.00034798,7]
[330044683,1718964639849,-500.0,0.00034798,7]
[330044684,1718964639859,-500.0,0.00034798,7]
[330044685,1718964639869,-500.0,0.00034798,7]
[330044686,1718964639879,-500.0,0.00034798,7]
[330044687,1718964639888,-500.0,0.00034798,7]
[330044688,1718964639898,-360.47058106,0.00034798,7]
[330044689,1718964639907,-500.0,0.00034798,7]
[330044690,1718964639917,-500.0,0.00034798,7]
[330044691,1718964639926,-500.0,0.00034798,7]
[330044692,1718964639936,-500.0,0.00034798,7]
[330044693,1718964639946,-500.0,0.00034798,7]
[330044694,1718964639954,-500.0,0.00034798,7]
[330044695,1718964639963,-500.0,0.00034798,7]
[330044696,1718964639975,-500.0,0.00034798,7]
[330044697,1718964639985,-500.0,0.00034798,7]
[330044698,1718964639994,-500.0,0.00034798,7]
[330044699,1718964640003,-642.40402685,0.00034798,7]
[330044700,1718964640012,-229262.05839706,0.000348,60]
[330044702,1718964640022,-252.0,0.000348,8]
[330044704,1718964640032,-154.77557542,0.00034809,4]
[330044706,1718964640042,-150.0,0.00034999,2]
[330044708,1718964640052,-192.77505749,0.00035,120]
[330044710,1718964640062,-500.0,0.00035,3]
[330044711,1718964640072,-306.0,0.00035121,2]
[330044713,1718964640082,-200.0966,0.00035259,4]
[330044714,1718964640092,-200.0966,0.00035259,4]
[330044715,1718964640102,-150.0,0.00035999,2]
[330044716,1718964640112,-718.48378254,0.00035999,4]
[330044717,1718964640122,-541.64940116,0.00036,3]
[330044718,1718964640132,-551.71273392,0.00036732,4]
[330044719,1718964640142,-622.23449439,0.00036739,2]
[330044720,1718964640151,-500.0,0.00036854,2]
[330044721,1718964640161,-583.42,0.00036854,2]
[330044722,1718964640171,-150.0,0.00036999,2]
[330044723,1718964640180,-500.0,0.00037,2]
[330044724,1718964640189,-205.6831939,0.00037038,2]
[330044725,1718964640198,-205.6831939,0.00037038,2]
[330044726,1718964640207,-205.6831939,0.00037038,2]
[330044727,1718964640218,-161.841746,0.00037652,2]
[330044728,1718964640227,-154.98450155,0.00037699,4]
[330044729,1718964640236,-343500.98874337,0.000378,90]
[330044730,1718964640249,-1001.9745,0.000378,90]
[330044731,1718964640261,-1661.72303914,0.000378,90]
[330044732,1718964640272,-2410.81270733,0.000378,90]
[330044733,1718964640284,-4169.64754278,0.000378,90]
[330044734,1718964640295,-341.51697593,0.000378,90]
[330044740,1718964640868,-2976.93,0.0003479,3]
[330044741,1718964640877,-34368.3339524,0.000378,90]
[330044742,1718964640890,-19257.0,0.000378,90]
[330044761,1718964643440,-2325.8419478,0.000378,90]
[330044767,1718964646528,10000.0,0.000225,30]
[330044772,1718964649767,-5278.16421133,0.000378,90]
[330044773,1718964649792,-4873.9266617,0.000378,90]
[330044774,1718964649803,-5970.34300896,0.000378,90]
[330044775,1718964661463,7697.0,0.000225,30]
[330044779,1718964993775,10000.0,0.00026,60]
[330044783,1718965436837,200.0,0.00026,60]
[330044784,1718965532187,-166.200001,0.00021096,2]
[330044785,1718965532207,-161.841746,0.00021096,2]
[330044786,1718965532227,-154.91997911,0.00023611,2]
[330044787,1718965532247,-549.8721803,0.00029975,2]
[330044791,1718965748167,-166.760716,0.00029754,2]
[330044792,1718965748187,-155.70368058,0.00029875,60]
[330044793,1718965748209,-1856.526123,0.00029975,2]
[330044794,1718965748229,-200.0,0.0003,60]
[330044795,1718965748250,-304.3837321,0.0003001,2]
[330044796,1718965748269,-250.0,0.00030347,2]
[330044797,1718965748290,-155.23723631,0.00031262,4]
[330044798,1718965748613,155.18763331,0.00031009,4]
[330044799,1718965761115,-154.76012181,0.00031515,4]
[330044800,1718965761135,-161.841746,0.00031631,2]
[330044801,1718965761155,-400.0,0.00031998,2]
[330044802,1718965761174,-353.0,0.00031999,2]
[330044803,1718965761193,-247.70086009,0.00032,4]
[330044804,1718965819733,221.81295969,0.00028909,2]
[330044805,1718965831860,39.29900657,0.00030741,2]
[330044806,1718965831880,1776.80846904,0.00030741,2]
[330044829,1718965832747,-539.28224768,0.00030741,2]
[330044841,1718965833721,-22544.61027671,0.00030741,2]
[330044842,1718965833811,-150.0,0.00031455,30]
[330044843,1718965833820,-150.0,0.00031455,30]
[330044844,1718965833829,-192.5,0.00031455,30]
[330044845,1718965833839,-380.0,0.00031999,2]
[330044846,1718965833848,-4752.29913991,0.00032,4]
[330044847,1718965833858,-225.0,0.00032,90]
[330044848,1718965833868,-221.81295969,0.00033909,2]
[330044849,1718965833878,-1271.68799814,0.000347,2]
[330044850,1718965833887,-188.46288717,0.000348,2]
[330044851,1718965833897,-501.76229384,0.00034809,4]
[330044852,1718965833906,-200.0,0.00035,120]
[330044853,1718965833917,-188.46288716,0.00035525,2]
[330044854,1718965833927,-188.46288716,0.0003625,2]
[330044855,1718965833937,-188.46288716,0.00036975,2]
[330044856,1718965833949,-426.3859472,0.00037038,2]
[330044857,1718965833959,-5274.4118793,0.00037451,2]
[330044858,1718965833969,-154.76012181,0.00037587,4]
[330044859,1718965833979,-252.0,0.000376,12]
[330044860,1718965833989,-188.46288716,0.000377,2]
[330044861,1718965833999,-229.91,0.0003777,62]
[330044862,1718965834009,-150.5,0.0003778,62]
[330044863,1718965834017,-3736.67,0.0003779,3]
[330044864,1718965834030,-150.5,0.0003779,62]
[330044865,1718965834041,-582.09993997,0.00037799,15]
[330044866,1718965834053,-500.0,0.00037799,15]
[330044867,1718965834062,-384.75060548,0.00037799,15]
[330044868,1718965834071,-500.0,0.00037799,15]
[330044869,1718965834081,-163.12161681,0.00037799,15]
[330044870,1718965834091,-500.0,0.00037799,15]
[330044871,1718965834100,-500.0,0.00037799,15]
[330044872,1718965834109,-500.0,0.00037799,15]
[330044873,1718965834118,-500.0,0.00037799,15]
[330044874,1718965834128,-500.0,0.00037799,15]
[330044875,1718965834137,-531.91051888,0.00037799,15]
[330044876,1718965834146,-288.2515544,0.00037799,15]
[330044877,1718965834155,-500.0,0.00037799,15]
[330044878,1718965834165,-500.0,0.00037799,15]
[330044879,1718965834175,-500.0,0.00037799,15]
[330044880,1718965834184,-500.0,0.00037799,15]
[330044881,1718965834193,-500.0,0.00037799,15]
[330044882,1718965834203,-500.0,0.00037799,15]
[330044883,1718965834212,-500.0,0.00037799,15]
[330044884,1718965834221,-500.0,0.00037799,15]
[330044885,1718965834231,-500.0,0.00037799,15]
[330044886,1718965834240,-216.08222848,0.00037799,15]
[330044887,1718965834249,-500.0,0.00037799,15]
[330044888,1718965834259,-500.0,0.00037799,15]
[330044889,1718965834268,-500.0,0.00037799,15]
[330044890,1718965834277,-500.0,0.00037799,15]
[330044891,1718965834287,-323.46954482,0.00037799,15]
[330044892,1718965834296,-500.0,0.00037799,15]
[330044893,1718965834305,-500.0,0.00037799,15]
[330044894,1718965834314,-163.31447647,0.00037799,15]
[330044895,1718965834324,-489.38828854,0.00037799,15]
[330044896,1718965834333,-235.87865388,0.00037799,15]
[330044897,1718965834342,-500.0,0.00037799,15]
[330044898,1718965834351,-4622.21880501,0.000378,90]
[330044907,1718965839525,-165.103559,0.00029716,2]
[330044908,1718965839535,-500.0,0.00037786,15]
[330044909,1718965839545,-405.84038346,0.00037786,15]
[330044910,1718965839555,-206.22530566,0.00037786,15]
[330044912,1718965839565,-500.0,0.00037786,7]
[330044914,1718965839575,-500.0,0.00037786,7]
[330044915,1718965839584,-298.61903343,0.00037786,15]
[330044916,1718965839594,-500.0,0.00037786,7]
[330044917,1718965839603,-500.0,0.00037786,7]
[330044918,1718965839613,-500.0,0.00037786,7]
[330044919,1718965839622,-500.0,0.00037786,7]
[330044920,1718965839632,-442.61761817,0.00037786,7]
[330044921,1718965839642,-3113.89,0.0003779,3]
[330044922,1718965839651,-17028.60035281,0.000378,90]
[330044930,1718965840991,-54203.89000074,0.000378,90]
[330044932,1718965841427,-4728.516748,0.000378,90]
[330044991,1718965844302,-7160.0,0.000378,90]
[330045007,1718965844491,-114.75932294,0.000378,90]
[330045059,1718965847284,-2594.91,0.0003779,3]
[330045061,1718965847294,-97105.09,0.000378,90]
[330045178,1718966728492,-534.75721529,0.00021,2]
[330045179,1718966728517,-157.894497,0.00021096,2]
[330045180,1718966728539,-300.0,0.00021338,2]
[330045181,1718966728560,-16361.4300978,0.00021339,2]
[330045182,1718966728583,-166.666666,0.00021918,2]
[330045183,1718966728603,-2100.22301092,0.00022,2]
[330045184,1718966728624,-737.08998565,0.00022,2]
[330045185,1718966728648,-24900.0,0.00022257,2]
[330045186,1718966728670,-1417.83208525,0.00022278,2]
[330045187,1718966728692,-508.3804522,0.00022378,2]
[330045188,1718966728715,-433.487488,0.00022382,2]
[330045189,1718966728737,-166.666666,0.00022438,2]
[330045190,1718966728765,-250.0,0.00022525,2]
[330045191,1718966728859,-166.666666,0.00022958,2]
[330045192,1718966728880,-1798.90516989,0.00022997,2]
[330045193,1718966810151,-166.647942,0.00022617,2]
[330045194,1718966810172,-26.19090792,0.00022996,2]
[330045195,1718966844099,-379.4,0.00022987,3]
[330045196,1718966844120,-213.61,0.0002299,3]
[330045197,1718966844142,-640.86,0.0002299,3]
[330045198,1718966844163,-194.0,0.00022996,2]
[330045199,1718966844185,-500.0,0.00022997,2]
[330045200,1718966844288,-349.97521644,0.00022997,2]
[330045201,1718966855716,-150.02478356,0.00022997,2]
[330045202,1718966855736,-233.03088115,0.00022997,2]
[330045203,1718966855756,-255.91886644,0.00022997,2]
[330045204,1718966855775,-621.52339457,0.00022997,2]
[330045205,1718966855797,-500.0,0.00022997,2]
[330045206,1718966855816,-517.04171139,0.00022997,2]
[330045207,1718966855837,-500.0,0.00022997,2]
[330045208,1718966855860,-468.38464318,0.00022997,2]
[330045209,1718966855880,-500.0,0.00022997,2]
[330045210,1718966855903,-500.0,0.00022997,2]
[330045211,1718966855924,-500.0,0.00022997,2]
[330045212,1718966855946,-500.0,0.00022997,2]
[330045213,1718966855967,-500.0,0.00022997,2]
[330045214,1718966855988,-500.0,0.00022997,2]
[330045215,1718966856009,-500.0,0.00022997,2]
[330045216,1718966856031,-500.0,0.00022997,2]
[330045217,1718966856052,-500.0,0.00022997,2]
[330045218,1718966856074,-500.0,0.00022997,2]
[330045219,1718966856094,-500.0,0.00022997,2]
[330045220,1718966856119,-500.0,0.00022997,2]
[330045221,1718966856140,-500.0,0.00022997,2]
[330045222,1718966856160,-500.0,0.00022997,2]
[330045223,1718966856180,-500.0,0.00022997,2]
[330045224,1718966856203,-923.24512803,0.00022997,2]
[330045225,1718966856223,-500.0,0.00022997,2]
[330045226,1718966856243,-500.0,0.00022997,2]
[330045227,1718966856264,-923.24512803,0.00022997,2]
[330045228,1718966856286,-923.24512803,0.00022997,2]
[330045229,1718966856312,-519.18399122,0.00022997,2]
[330045230,1718966856333,-290.93161065,0.00022997,2]
[330045231,1718966856360,-923.24512803,0.00022997,2]
[330045232,1718966856383,-923.24512803,0.00022997,2]
[330045233,1718966856404,-923.24512803,0.00022997,2]
[330045234,1718966856426,-923.24512803,0.00022997,2]
[330045235,1718966856447,-923.24512803,0.00022997,2]
[330045236,1718966856470,-923.24512803,0.00022997,2]
[330045237,1718966856492,-923.24512803,0.00022997,2]
[330045238,1718966856515,-923.24512803,0.00022997,2]
[330045239,1718966856537,-923.24512803,0.00022997,2]
[330045240,1718966856558,-923.24512803,0.00022997,2]
[330045241,1718966856580,-923.24512803,0.00022997,2]
[330045242,1718966856604,-923.24512803,0.00022997,2]
[330045243,1718966856626,-923.24512803,0.00022997,2]
[330045244,1718966856648,-923.24512803,0.00022997,2]
[330045245,1718966856669,-923.24512803,0.00022997,2]
[330045246,1718966856691,-923.24512803,0.00022997,2]
[330045247,1718966856713,-923.24512803,0.00022997,2]
[330045248,1718966856735,-923.24512803,0.00022997,2]
[330045249,1718966856758,-923.24512803,0.00022997,2]
[330045250,1718966856780,-923.24512803,0.00022997,2]
[330045251,1718966856802,-923.24512803,0.00022997,2]
[330045252,1718966856824,-923.24512803,0.00022997,2]
[330045253,1718966856847,-923.24512803,0.00022997,2]
[330045254,1718966856870,-923.24512803,0.00022997,2]
[330045255,1718966856892,-923.24512803,0.00022997,2]
[330045256,1718966856915,-923.24512803,0.00022997,2]
[330045257,1718966856937,-923.24512803,0.00022997,2]
[330045258,1718966856960,-923.24512803,0.00022997,2]
[330045259,1718966856982,-923.24512803,0.00022997,2]
[330045260,1718966857005,-923.24512803,0.00022997,2]
[330045261,1718966857030,-923.24512803,0.00022997,2]
[330045262,1718966857052,-923.24512803,0.00022997,2]
[330045263,1718966857074,-923.24512803,0.00022997,2]
[330045264,1718966857096,-923.24512803,0.00022997,2]
[330045265,1718966857118,-923.24512803,0.00022997,2]
[330045266,1718966857140,-923.24512803,0.00022997,2]
[330045267,1718966857161,-923.24512803,0.00022997,2]
[330045268,1718966857261,-923.24512803,0.00022997,2]
[330045269,1718966857290,-923.24512803,0.00022997,2]
[330045270,1718966857313,-923.24512803,0.00022997,2]
[330045271,1718966857337,-923.24512803,0.00022997,2]
[330045272,1718966857360,-923.24512803,0.00022997,2]
[330045273,1718966857384,-923.24512803,0.00022997,2]
[330045274,1718966857408,-923.24512803,0.00022997,2]
[330045275,1718966857432,-923.24512803,0.00022997,2]
[330045276,1718966857454,-923.24512803,0.00022997,2]
[330045277,1718966857485,-923.24512803,0.00022997,2]
[330045278,1718966857508,-923.24512803,0.00022997,2]
[330045279,1718966857530,-923.24512803,0.00022997,2]
[330045280,1718966857553,-923.24512803,0.00022997,2]
[330045281,1718966857577,-1202.67929755,0.00022997,2]
[330045282,1718966857600,-1202.67929755,0.00022997,2]
[330045283,1718966857624,-1202.67929755,0.00022997,2]
[330045284,1718966857646,-1202.67929755,0.00022997,2]
[330045285,1718966857668,-1202.67929755,0.00022997,2]
[330045286,1718966857690,-1202.67929755,0.00022997,2]
[330045287,1718966857712,-1202.67929755,0.00022997,2]
[330045288,1718966857734,-1202.67929755,0.00022997,2]
[330045289,1718966857758,-1202.67929755,0.00022997,2]
[330045290,1718966857780,-1202.67929755,0.00022997,2]
[330045291,1718966857802,-1202.67929755,0.00022997,2]
[330045292,1718966857825,-1202.67929755,0.00022997,2]
[330045293,1718966857847,-1202.67929755,0.00022997,2]
[330045294,1718966857871,-1202.67929755,0.00022997,2]
[330045295,1718966857893,-1202.67929755,0.00022997,2]
[330045296,1718966857916,-1202.67929755,0.00022997,2]
[330045297,1718966857939,-1202.67929755,0.00022997,2]
[330045298,1718966857961,-1202.67929755,0.00022997,2]
[330045299,1718966857983,-1202.67929755,0.00022997,2]
[330045300,1718966858006,-1202.67929755,0.00022997,2]
[330045301,1718966858028,-1202.67929755,0.00022997,2]
[330045302,1718966858050,-1202.67929755,0.00022997,2]
[330045303,1718966858078,-1202.67929755,0.00022997,2]
[330045304,1718966858102,-1202.67929755,0.00022997,2]
[330045305,1718966858129,-1202.67929755,0.00022997,2]
[330045306,1718966858151,-1202.67929755,0.00022997,2]
[330045307,1718966858174,-1202.67929755,0.00022997,2]
[330045308,1718966858197,-1202.67929755,0.00022997,2]
[330045309,1718966858219,-1202.67929755,0.00022997,2]
[330045310,1718966858241,-1202.67929753,0.00022997,2]
[330045311,1718966858265,-1202.67929753,0.00022997,2]
[330045312,1718966858288,-1202.67929753,0.00022997,2]
[330045313,1718966858314,-26.23081071,0.00022997,2]
[330045314,1718966947092,-165.919197,0.00022317,2]
[330045315,1718966947113,-2236.87137212,0.00023,2]
[330045316,1718966947133,-238.19268167,0.00023,2]
[330045317,1718966947154,-5000.0,0.00023,2]
[330045318,1718966947175,-5000.0,0.00023,3]
[330045319,1718966947196,-166.666666,0.00023479,2]
[330045320,1718966947217,-165.9192043,0.00023681,2]
[330045321,1718966947237,-3136.42681003,0.00023739,2]
[330045322,1718966947258,-1484.19889051,0.00023799,2]
[330045323,1718966947279,-305.3,0.0002382,3]
[330045324,1718966947299,-427.22,0.0002382,3]
[330045325,1718966947326,-500.0,0.00023829,2]
[330045326,1718966947349,-500.0,0.00023829,2]
[330045327,1718966947375,-500.0,0.00023829,2]
[330045328,1718966947402,-500.0,0.00023829,2]
[330045329,1718966947427,-500.0,0.00023829,2]
[330045330,1718966947449,-500.0,0.00023829,2]
[330045331,1718966947472,-500.0,0.00023829,2]
[330045332,1718966947496,-500.0,0.00023829,2]
[330045333,1718966947520,-500.0,0.00023829,2]
[330045334,1718966947544,-500.0,0.00023829,2]
[330045335,1718966947569,-500.0,0.00023829,2]
[330045336,1718966947664,-411.28945214,0.00023829,2]
[330045337,1718966947690,-500.0,0.00023829,2]
[330045338,1718966947713,-500.0,0.00023829,2]
[330045339,1718966947737,-500.0,0.00023829,2]
[330045340,1718966947761,-500.0,0.00023829,2]
[330045341,1718966947791,-500.0,0.00023829,2]
[330045342,1718966947815,-500.0,0.00023829,2]
[330045343,1718966947840,-500.0,0.00023829,2]
[330045344,1718966947867,-500.0,0.00023829,2]
[330045345,1718966947891,-500.0,0.00023829,2]
[330045346,1718966947915,-500.0,0.00023829,2]
[330045347,1718966947938,-500.0,0.00023829,2]
[330045348,1718966947961,-500.0,0.00023829,2]
[330045349,1718966947984,-500.0,0.00023829,2]
[330045350,1718966948007,-500.0,0.00023829,2]
[330045351,1718966948030,-500.0,0.00023829,2]
[330045352,1718966948052,-500.0,0.00023829,2]
[330045353,1718966948075,-500.0,0.00023829,2]
[330045354,1718966948098,-500.0,0.00023829,2]
[330045355,1718966948120,-291.12894522,0.00023829,2]
[330045356,1718966948139,-66167.26286888,0.0002383,2]
[330045357,1718966948160,-2151.95268662,0.00023899,2]
[330045358,1718966948181,-266.3671691,0.00023899,2]
[330045359,1718966948201,-221.58930488,0.00023899,2]
[330045360,1718966948222,-526.77565994,0.00023899,2]
[330045361,1718966948244,-500.0,0.00023899,2]
[330045362,1718966948266,-500.0,0.00023899,2]
[330045363,1718966948288,-500.0,0.00023899,2]
[330045364,1718966948312,-500.0,0.00023899,2]
[330045365,1718966948342,-240.51539296,0.00023899,2]
[330045366,1718966948367,-460.22088269,0.00023899,2]
[330045367,1718966948387,-225.76099711,0.00023899,2]
[330045368,1718966948412,-5000.0,0.000239,4]
[330045369,1718966948437,-166.666666,0.00023999,2]
[330045370,1718966948458,-621.80914407,0.00024197,2]
[330045371,1718966948482,-427.22,0.0002436,3]
[330045372,1718966948503,-166.666666,0.00024519,2]
[330045373,1718966948524,-2151.95268661,0.00024741,2]
[330045374,1718966948546,-3000.0,0.000249,2]
[330045375,1718966948567,-3000.0,0.0002491,2]
[330045376,1718966948589,-3000.0,0.0002492,2]
[330045377,1718966948610,-3000.0,0.0002493,2]
[330045378,1718966948631,-3000.0,0.0002494,2]
[330045379,1718966948654,-3000.0,0.0002495,2]
[330045380,1718966948679,-3000.0,0.0002496,2]
[330045381,1718966948700,-3000.0,0.0002497,2]
[330045382,1718966948722,-3000.0,0.0002498,2]
[330045383,1718966948743,-3000.0,0.0002499,2]
[330045384,1718966948764,-1023.47133137,0.00025,2]
[330045385,1718966950328,-5000.0,0.00025,10]
[330045386,1718966950354,-5000.0,0.00025,14]
[330045387,1718966950388,-3000.0,0.00025,2]
[330045388,1718966950422,-5434.242723,0.0002501,2]
[330045389,1718966950451,-523.38,0.00025187,3]
[330045390,1718966950475,-610.6,0.0002519,3]
[330045391,1718966950499,-854.44,0.0002519,3]
[330045392,1718966950522,-620.0904572,0.00025407,2]
[330045393,1718966950545,-2151.95268661,0.00025583,2]
[330045394,1718966950566,-152.05863541,0.00026,2]
[330045395,1718966950589,-2151.95268661,0.00026425,2]
[330045396,1718966950614,-7458.94652043,0.0002649,2]
[330045397,1718966950635,-27536.67066708,0.00026574,2]
[330045398,1718966952199,-1450.44651891,0.00026574,2]
[330045399,1718966953119,-6096.87775341,0.00026574,2]
[330045400,1718966953139,-2053.792176,0.000266,2]
[330045401,1718966953160,-1503.59915807,0.00026676,2]
[330045402,1718966953183,-620.00452286,0.00026677,2]
[330045403,1718966953203,-155.33802007,0.00027266,2]
[330045404,1718966953225,-1057.49407512,0.00027267,2]
[330045405,1718966953258,-260.05606823,0.00027267,2]
[330045406,1718966955103,-410.52094737,0.00027267,2]
[330045407,1718966961341,-1630.91,0.0002399,6]
[330045408,1718966961364,-423.88159589,0.00027267,2]
[330045409,1718966961385,-164.63956456,0.00027293,2]
[330045410,1718966961407,-569.41338852,0.00027397,2]
[330045411,1718966961428,-216.743744,0.00027611,2]
[330045412,1718966961458,-1027.04022962,0.000279,2]
[330045413,1718966961478,-1638.26398363,0.0002799,2]
[330045414,1718966961498,-2554.26873774,0.00029,21]
[330045415,1718967010262,250.0,0.00022,2]
[330045416,1718967010285,250.0,0.00022,2]
[330045417,1718967010734,500.0,0.00022,2]
[330045418,1718967011144,500.0,0.00022,2]
[330045419,1718967011641,500.0,0.00022,2]
[330045420,1718967012193,84.349493,0.00022,2]
[330045421,1718967012214,222.33175572,0.00022,2]
[330045422,1718967012324,193.31875128,0.00022,2]
[330045423,1718967012711,56.68124872,0.00022,2]
[330045434,1718967033263,-443.31875128,0.00022,2]
[330045436,1718967033272,-500.0,0.00022,2]
[330045438,1718967033281,-500.0,0.00022,2]
[330045448,1718967033372,-500.0,0.00022,2]
[330045450,1718967033382,-500.0,0.00022,2]
[330045452,1718967033392,-500.0,0.00022,2]
[330045453,1718967033401,-14.55536322,0.00022,2]
[330045456,1718967033415,-485.44463678,0.00022,2]
[330045458,1718967033423,-175.15549661,0.00022,2]
[330045464,1718967033469,-324.84450339,0.00022,2]
[330045465,1718967033478,-222.86277593,0.00022,2]
[330045495,1718967039410,-277.13722407,0.00022,2]
[330045497,1718967039420,-500.0,0.00022,2]
[330045499,1718967039437,-267.78374381,0.00022,2]
[330045501,1718967039530,-150.0,0.00024474,2]
[330045502,1718967039540,-24900.0,0.0002898,2]
[330045503,1718967039551,-2445.73126226,0.00029,21]
[330045504,1718967039560,-157.894497,0.00029374,2]
[330045505,1718967039571,-153.82992579,0.0003,7]
[330045506,1718967039580,-5000.0,0.0003,28]
[330045507,1718967039591,-500.0,0.00030578,2]
[330045508,1718967039601,-500.0,0.00030578,2]
[330045509,1718967039611,-365.68099391,0.00030578,2]
[330045510,1718967039622,-14932.20668281,0.00030579,4]
[330045511,1718967039632,-14932.20668281,0.00030579,4]
[330045512,1718967039642,-1247.90532173,0.0003074,4]
[330045513,1718967039652,-154.76012181,0.00030863,4]
[330045514,1718967039662,-5140.47,0.00031311,3]
[330045515,1718967039672,-4283.72,0.00031311,3]
[330045516,1718967039681,-244.03430936,0.0003132,2]